[Event "*** SCC Grand Prix: Titled Tuesday Blitz"]
[Site "Chess.com"]
[Date "2020.09.29"]
[Round "4"]
[White "IvanSoriano1"]
[Black "PawnEatingZombie"]
[Result "1-0"]
[WhiteElo "2493"]
[BlackElo "2225"]
[TimeControl "180+1"]
[EndTime "10:38:27 PDT"]
[Termination "IvanSoriano1 won on time"]

1. Nf3 {[%clk 0:03:00.9]} 1... d5 {[%clk 0:02:59.6]} 2. c4 {[%clk 0:03:00.7]}
2... e6 {[%clk 0:02:56.9]} 3. b3 {[%clk 0:03:00.9]} 3... Nf6 {[%clk 0:02:55.4]}
4. Bb2 {[%clk 0:03:01]} 4... Bd6 {[%clk 0:02:54.5]} 5. g3 {[%clk 0:03:01.4]}
5... b6 {[%clk 0:02:53.6]} 6. Bg2 {[%clk 0:03:01.7]} 6... Bb7 {[%clk 0:02:54.1]}
7. O-O {[%clk 0:03:01.3]} 7... Nbd7 {[%clk 0:02:53.2]} 8. d3 {[%clk 0:03:01.6]}
8... O-O {[%clk 0:02:49.5]} 9. Nbd2 {[%clk 0:03:01.3]} 9... c5 {[%clk
0:02:47.8]} 10. cxd5 {[%clk 0:03:00.5]} 10... exd5 {[%clk 0:02:45.6]} 11. d4
{[%clk 0:02:59.8]} 11... Qe7 {[%clk 0:02:42.7]} 12. Re1 {[%clk 0:02:57.9]} 12...
Rfe8 {[%clk 0:02:40.9]} 13. Rc1 {[%clk 0:02:57.3]} 13... Rac8 {[%clk 0:02:34.4]}
14. Nh4 {[%clk 0:02:50.4]} 14... g6 {[%clk 0:02:30.9]} 15. Nhf3 {[%clk
0:02:49.9]} 15... a5 {[%clk 0:02:28.4]} 16. Bh3 {[%clk 0:02:48.8]} 16... Rcd8
{[%clk 0:02:24.8]} 17. Nf1 {[%clk 0:02:42.5]} 17... Ne4 {[%clk 0:02:21.1]} 18.
Ne3 {[%clk 0:02:32.4]} 18... Nxf2 {[%clk 0:02:04.5]} 19. Kxf2 {[%clk 0:02:33.3]}
19... Qxe3+ {[%clk 0:02:03.2]} 20. Kg2 {[%clk 0:02:29.4]} 20... Nf8 {[%clk
0:01:22.6]} 21. Rc3 {[%clk 0:02:26.7]} 21... Qe7 {[%clk 0:01:21.2]} 22. Kf2
{[%clk 0:02:22.4]} 22... Ne6 {[%clk 0:01:10.7]} 23. Re3 {[%clk 0:02:20.8]} 23...
Qf8 {[%clk 0:01:08]} 24. Qd3 {[%clk 0:02:16.6]} 24... Qh6 {[%clk 0:00:59.8]} 25.
Kg2 {[%clk 0:02:14.7]} 25... Ng5 {[%clk 0:00:56.2]} 26. Rxe8+ {[%clk 0:02:09.2]}
26... Rxe8 {[%clk 0:00:55.4]} 27. Nxg5 {[%clk 0:02:08.7]} 27... Qxg5 {[%clk
0:00:53.2]} 28. Qc3 {[%clk 0:02:07.8]} 28... Qe3 {[%clk 0:00:39]} 29. Qxe3
{[%clk 0:01:53.4]} 29... Rxe3 {[%clk 0:00:38.4]} 30. Kf2 {[%clk 0:01:54.3]}
30... Re8 {[%clk 0:00:35.1]} 31. Bg2 {[%clk 0:01:53.8]} 31... Re7 {[%clk
0:00:30.2]} 32. Bf3 {[%clk 0:01:53.7]} 32... c4 {[%clk 0:00:28.6]} 33. Rc1
{[%clk 0:01:51.9]} 33... b5 {[%clk 0:00:28.3]} 34. Bc3 {[%clk 0:01:50.1]} 34...
b4 {[%clk 0:00:27.3]} 35. Bd2 {[%clk 0:01:50.3]} 35... c3 {[%clk 0:00:27.6]} 36.
Bg5 {[%clk 0:01:50.9]} 36... Re8 {[%clk 0:00:25.4]} 37. Be3 {[%clk 0:01:46.1]}
37... Bf8 {[%clk 0:00:23.6]} 38. Ra1 {[%clk 0:01:44.8]} 38... f5 {[%clk
0:00:20.2]} 39. a3 {[%clk 0:01:44.5]} 39... Kf7 {[%clk 0:00:18.8]} 40. axb4
{[%clk 0:01:44.3]} 40... Bxb4 {[%clk 0:00:19.1]} 41. Bc1 {[%clk 0:01:41.2]}
41... Ke6 {[%clk 0:00:18.9]} 42. Ba3 {[%clk 0:01:41.3]} 42... Rc8 {[%clk
0:00:17.8]} 43. Bc1 {[%clk 0:01:40.5]} 43... Ba6 {[%clk 0:00:14.9]} 44. Ke3
{[%clk 0:01:40]} 44... Bb5 {[%clk 0:00:14.9]} 45. h4 {[%clk 0:01:38.9]} 45...
Kd6 {[%clk 0:00:15.1]} 46. Kf2 {[%clk 0:01:38.3]} 46... Re8 {[%clk 0:00:14.6]}
47. Bf4+ {[%clk 0:01:38.2]} 47... Kc6 {[%clk 0:00:14.6]} 48. Rc1 {[%clk
0:01:38.1]} 48... a4 {[%clk 0:00:12.4]} 49. bxa4 {[%clk 0:01:34.3]} 49... Bxa4
{[%clk 0:00:12.6]} 50. Bd2 {[%clk 0:01:34.9]} 50... Kb5 {[%clk 0:00:07.5]} 51.
Bxc3 {[%clk 0:01:34.9]} 51... Rc8 {[%clk 0:00:04.3]} 52. Bb2 {[%clk 0:01:34.8]}
52... Rxc1 {[%clk 0:00:03.3]} 53. Bxc1 {[%clk 0:01:35.7]} 53... Kc4 {[%clk
0:00:02.2]} 54. Be3 {[%clk 0:01:35.6]} 54... Bc3 {[%clk 0:00:02.1]} 55. Kg2
{[%clk 0:01:33.9]} 55... Bxd4 {[%clk 0:00:02.7]} 56. Bf4 {[%clk 0:01:34.6]}
56... Bc3 {[%clk 0:00:02.6]} 57. h5 {[%clk 0:01:34.2]} 57... d4 {[%clk
0:00:03.1]} 58. h6 {[%clk 0:01:33.8]} 58... d3 {[%clk 0:00:02.3]} 59. exd3+
{[%clk 0:01:32.9]} 59... Kxd3 {[%clk 0:00:03.2]} 60. Bd5 {[%clk 0:01:32.9]}
60... Bc2 {[%clk 0:00:03]} 61. Bg8 {[%clk 0:01:32.7]} 61... Ke2 {[%clk
0:00:01.1]} 62. Bxh7 {[%clk 0:01:32.6]} 1-0

[Event "*** SCC Grand Prix: Titled Tuesday Blitz"]
[Site "Chess.com"]
[Date "2020.09.29"]
[Round "4"]
[White "Xtrmntr78"]
[Black "Oscar-Luna"]
[Result "1-0"]
[WhiteElo "2576"]
[BlackElo "2157"]
[TimeControl "180+1"]
[EndTime "10:38:28 PDT"]
[Termination "Xtrmntr78 won on time"]

1. c4 {[%clk 0:03:00.9]} 1... e5 {[%clk 0:02:58.1]} 2. Nc3 {[%clk 0:03:01.4]}
2... c5 {[%clk 0:02:55.6]} 3. Nf3 {[%clk 0:03:00.7]} 3... Nc6 {[%clk 0:02:55.7]}
4. g3 {[%clk 0:03:00.7]} 4... g6 {[%clk 0:02:56.2]} 5. Bg2 {[%clk 0:03:00.9]}
5... Bg7 {[%clk 0:02:56.9]} 6. O-O {[%clk 0:03:01.2]} 6... Nge7 {[%clk
0:02:57.5]} 7. a3 {[%clk 0:03:01.8]} 7... a6 {[%clk 0:02:56.1]} 8. Rb1 {[%clk
0:03:01.8]} 8... Rb8 {[%clk 0:02:55.6]} 9. b4 {[%clk 0:03:01.7]} 9... cxb4
{[%clk 0:02:55.2]} 10. axb4 {[%clk 0:03:02.2]} 10... b5 {[%clk 0:02:55.7]} 11.
c5 {[%clk 0:02:57.6]} 11... d6 {[%clk 0:02:48.9]} 12. Ne4 {[%clk 0:02:13.9]}
12... dxc5 {[%clk 0:02:41]} 13. Nxc5 {[%clk 0:02:02.2]} 13... O-O {[%clk
0:02:35.5]} 14. d3 {[%clk 0:02:02.4]} 14... Qc7 {[%clk 0:02:25.4]} 15. Bd2
{[%clk 0:01:49.1]} 15... h6 {[%clk 0:01:57.1]} 16. Qb3 {[%clk 0:01:46.4]} 16...
Nf5 {[%clk 0:01:36.7]} 17. e3 {[%clk 0:01:42.7]} 17... Qb6 {[%clk 0:01:24.6]}
18. Rfc1 {[%clk 0:01:41.1]} 18... Kh7 {[%clk 0:01:07.1]} 19. Qa3 {[%clk
0:01:19.7]} 19... Rd8 {[%clk 0:01:00.2]} 20. Qa2 {[%clk 0:01:11.4]} 20... Nd6
{[%clk 0:00:43]} 21. h3 {[%clk 0:01:09.8]} 21... f5 {[%clk 0:00:39]} 22. Ne6
{[%clk 0:01:00]} 22... Rg8 {[%clk 0:00:11.3]} 23. Qd5 {[%clk 0:00:39.5]} 23...
Bxe6 {[%clk 0:00:05.9]} 24. Qxe6 {[%clk 0:00:34.1]} 24... Rbd8 {[%clk
0:00:05.9]} 25. Nh4 {[%clk 0:00:30.5]} 25... g5 {[%clk 0:00:01.5]} 26. Rxc6
{[%clk 0:00:28.8]} 26... Qb8 {[%clk 0:00:01.7]} 27. Qg6+ {[%clk 0:00:24.2]}
27... Kh8 {[%clk 0:00:01.7]} 28. Nxf5 {[%clk 0:00:22.7]} 28... e4 {[%clk
0:00:02.3]} 29. Nxh6 {[%clk 0:00:19.9]} 1-0

[Event "*** SCC Grand Prix: Titled Tuesday Blitz"]
[Site "Chess.com"]
[Date "2020.09.29"]
[Round "4"]
[White "chegueps"]
[Black "tk22h"]
[Result "1-0"]
[WhiteElo "2461"]
[BlackElo "2309"]
[TimeControl "180+1"]
[EndTime "10:38:30 PDT"]
[Termination "chegueps won by resignation"]

1. d4 {[%clk 0:02:56.9]} 1... Nf6 {[%clk 0:02:58.5]} 2. Nf3 {[%clk 0:02:56.7]}
2... g6 {[%clk 0:02:58.4]} 3. Nc3 {[%clk 0:02:56.8]} 3... d5 {[%clk 0:02:57.5]}
4. Bf4 {[%clk 0:02:57.5]} 4... Bg7 {[%clk 0:02:56.8]} 5. e3 {[%clk 0:02:55.5]}
5... O-O {[%clk 0:02:56.2]} 6. Ne5 {[%clk 0:02:55.7]} 6... c5 {[%clk 0:02:55.5]}
7. h4 {[%clk 0:02:56.1]} 7... h5 {[%clk 0:02:54.5]} 8. Qf3 {[%clk 0:02:52.6]}
8... Nc6 {[%clk 0:02:49.5]} 9. O-O-O {[%clk 0:02:48.8]} 9... cxd4 {[%clk
0:02:49.3]} 10. exd4 {[%clk 0:02:49.7]} 10... Nxe5 {[%clk 0:02:41.7]} 11. dxe5
{[%clk 0:02:48]} 11... Bg4 {[%clk 0:02:41.4]} 12. Qg3 {[%clk 0:02:47.1]} 12...
Bxd1 {[%clk 0:02:28.4]} 13. exf6 {[%clk 0:02:46.6]} 13... Bxf6 {[%clk
0:02:25.3]} 14. Nxd1 {[%clk 0:02:46.5]} 14... Qa5 {[%clk 0:02:23.6]} 15. Kb1
{[%clk 0:02:35.6]} 15... Rfc8 {[%clk 0:02:22.3]} 16. Bd3 {[%clk 0:02:34.9]}
16... Kg7 {[%clk 0:02:21.6]} 17. Ne3 {[%clk 0:02:11.8]} 17... Rc6 {[%clk
0:01:50]} 18. Be5 {[%clk 0:01:58.3]} 18... Rac8 {[%clk 0:01:43.8]} 19. Nf5+
{[%clk 0:01:56.3]} 19... Kf8 {[%clk 0:01:42.6]} 20. Nd4 {[%clk 0:01:46]} 20...
Rb6 {[%clk 0:01:35.5]} 21. Nb3 {[%clk 0:01:36.7]} 21... Qb4 {[%clk 0:01:29.1]}
22. f4 {[%clk 0:01:30.7]} 22... Bxe5 {[%clk 0:01:16.6]} 23. fxe5 {[%clk
0:01:31.6]} 23... Qg4 {[%clk 0:01:13.8]} 24. Qf2 {[%clk 0:01:24.2]} 24... Kg7
{[%clk 0:01:11.4]} 25. Rf1 {[%clk 0:01:23.1]} 25... f5 {[%clk 0:01:07.4]} 26.
Nd4 {[%clk 0:01:17.5]} 26... Rb4 {[%clk 0:00:57.8]} 27. Bxf5 {[%clk 0:00:44]}
27... gxf5 {[%clk 0:00:37.5]} 28. Nxf5+ {[%clk 0:00:44.9]} 28... Kh8 {[%clk
0:00:34.7]} 29. Nxe7 {[%clk 0:00:45]} 29... Rg8 {[%clk 0:00:22.9]} 30. Nxg8
{[%clk 0:00:43.6]} 30... Qxg8 {[%clk 0:00:21.4]} 31. Qf6+ {[%clk 0:00:40.6]}
31... Qg7 {[%clk 0:00:21.3]} 32. Qd8+ {[%clk 0:00:38.2]} 32... Kh7 {[%clk
0:00:21.4]} 33. Qe8 {[%clk 0:00:38.6]} 33... Re4 {[%clk 0:00:18.9]} 34. Qxh5+
{[%clk 0:00:36.2]} 34... Qh6 {[%clk 0:00:18.2]} 35. Rf7+ {[%clk 0:00:32]} 35...
Kg8 {[%clk 0:00:18]} 36. Qxh6 {[%clk 0:00:31.7]} 36... Re1+ {[%clk 0:00:16.2]}
37. Qc1 {[%clk 0:00:32.2]} 37... Rxc1+ {[%clk 0:00:16.2]} 38. Kxc1 {[%clk
0:00:33.1]} 38... Kxf7 {[%clk 0:00:16.1]} 39. g4 {[%clk 0:00:34]} 1-0

[Event "*** SCC Grand Prix: Titled Tuesday Blitz"]
[Site "Chess.com"]
[Date "2020.09.29"]
[Round "4"]
[White "Gulkov_Igor"]
[Black "chessmachine14"]
[Result "1-0"]
[WhiteElo "2439"]
[BlackElo "2288"]
[TimeControl "180+1"]
[EndTime "10:38:35 PDT"]
[Termination "Gulkov_Igor won on time"]

1. Nf3 {[%clk 0:03:00.9]} 1... Nf6 {[%clk 0:02:57.8]} 2. c4 {[%clk 0:02:59.9]}
2... g6 {[%clk 0:02:56.6]} 3. Nc3 {[%clk 0:02:59.7]} 3... Bg7 {[%clk 0:02:57.2]}
4. e4 {[%clk 0:02:59.7]} 4... d6 {[%clk 0:02:56.7]} 5. d4 {[%clk 0:03:00.3]}
5... O-O {[%clk 0:02:54.6]} 6. Be2 {[%clk 0:03:01.2]} 6... e5 {[%clk 0:02:53.4]}
7. Be3 {[%clk 0:03:00.8]} 7... Ng4 {[%clk 0:02:52.1]} 8. Bg5 {[%clk 0:03:00.1]}
8... f6 {[%clk 0:02:49.6]} 9. Bh4 {[%clk 0:02:58.9]} 9... h5 {[%clk 0:02:35.2]}
10. dxe5 {[%clk 0:02:34.9]} 10... dxe5 {[%clk 0:02:30]} 11. Qxd8 {[%clk
0:02:33.3]} 11... Rxd8 {[%clk 0:02:28.9]} 12. h3 {[%clk 0:02:33.6]} 12... Nh6
{[%clk 0:02:24.6]} 13. Nd5 {[%clk 0:02:27.2]} 13... g5 {[%clk 0:02:20.9]} 14.
Nxc7 {[%clk 0:02:25.9]} 14... gxh4 {[%clk 0:02:08.5]} 15. Nxa8 {[%clk
0:02:25.2]} 15... Na6 {[%clk 0:02:03.9]} 16. c5 {[%clk 0:02:14.8]} 16... Nxc5
{[%clk 0:01:52.3]} 17. Nc7 {[%clk 0:02:14]} 17... Kh7 {[%clk 0:01:20.6]} 18. O-O
{[%clk 0:02:04.4]} 18... Nxe4 {[%clk 0:01:15.3]} 19. Rfd1 {[%clk 0:02:02.7]}
19... Rf8 {[%clk 0:01:08.7]} 20. Nxh4 {[%clk 0:01:54.7]} 20... f5 {[%clk
0:00:58.4]} 21. Rac1 {[%clk 0:01:43.2]} 21... Bf6 {[%clk 0:00:48.7]} 22. Nf3
{[%clk 0:01:42.5]} 22... Nf7 {[%clk 0:00:28]} 23. Nd5 {[%clk 0:01:38.8]} 23...
Kg6 {[%clk 0:00:19.6]} 24. Rc7 {[%clk 0:01:33.6]} 24... Nfd6 {[%clk 0:00:12.9]}
25. Ne7+ {[%clk 0:01:27.1]} 25... Bxe7 {[%clk 0:00:12.6]} 26. Rxe7 {[%clk
0:01:26.9]} 26... Kf6 {[%clk 0:00:09.1]} 27. Rxe5 {[%clk 0:01:25.6]} 27... Nf7
{[%clk 0:00:05.8]} 28. Red5 {[%clk 0:01:19.3]} 28... Be6 {[%clk 0:00:05]} 29.
Rb5 {[%clk 0:01:17.3]} 29... Rg8 {[%clk 0:00:05.1]} 30. Nd4 {[%clk 0:01:09.2]}
30... Bd7 {[%clk 0:00:04.4]} 31. Rb4 {[%clk 0:01:05.6]} 31... Ne5 {[%clk
0:00:04.7]} 32. Rxb7 {[%clk 0:01:02.2]} 32... f4 {[%clk 0:00:03.2]} 33. Kf1
{[%clk 0:00:49.3]} 33... Ng5 {[%clk 0:00:01.7]} 34. Nf3 {[%clk 0:00:35.8]} 34...
Ngxf3 {[%clk 0:00:01.6]} 35. Bxf3 {[%clk 0:00:35.5]} 1-0

[Event "*** SCC Grand Prix: Titled Tuesday Blitz"]
[Site "Chess.com"]
[Date "2020.09.29"]
[Round "4"]
[White "Unknown_IM"]
[Black "Nastya_Rakhmangulova"]
[Result "1-0"]
[WhiteElo "2316"]
[BlackElo "2432"]
[TimeControl "180+1"]
[EndTime "10:38:36 PDT"]
[Termination "Unknown_IM won by resignation"]

1. e4 {[%clk 0:03:00.9]} 1... d5 {[%clk 0:02:59.4]} 2. exd5 {[%clk 0:03:00.5]}
2... Qxd5 {[%clk 0:03:00.3]} 3. Nf3 {[%clk 0:03:00.7]} 3... Nc6 {[%clk
0:02:59.6]} 4. d4 {[%clk 0:02:55.5]} 4... Bg4 {[%clk 0:02:59.1]} 5. Be2 {[%clk
0:02:49.6]} 5... O-O-O {[%clk 0:02:54.6]} 6. c4 {[%clk 0:02:46.5]} 6... Qh5
{[%clk 0:02:51.4]} 7. d5 {[%clk 0:01:53.9]} 7... Bxf3 {[%clk 0:02:43.2]} 8. Bxf3
{[%clk 0:01:53.6]} 8... Qe5+ {[%clk 0:02:43.4]} 9. Be3 {[%clk 0:01:38.9]} 9...
Qxb2 {[%clk 0:02:36.8]} 10. Nd2 {[%clk 0:01:38]} 10... Ne5 {[%clk 0:02:35]} 11.
O-O {[%clk 0:01:36.6]} 11... Nxf3+ {[%clk 0:02:31.3]} 12. Nxf3 {[%clk
0:01:33.8]} 12... e6 {[%clk 0:02:26.5]} 13. Qa4 {[%clk 0:01:32.9]} 13... a6
{[%clk 0:02:24.9]} 14. Rab1 {[%clk 0:01:24.7]} 14... Qa3 {[%clk 0:02:24.4]} 15.
Qc2 {[%clk 0:01:18.4]} 15... Bc5 {[%clk 0:02:15.2]} 16. Bf4 {[%clk 0:01:15.6]}
16... Nf6 {[%clk 0:02:04.6]} 17. Ng5 {[%clk 0:01:12.9]} 17... exd5 {[%clk
0:01:57.1]} 18. Nxf7 {[%clk 0:01:11.7]} 18... d4 {[%clk 0:01:50.4]} 19. Nxh8
{[%clk 0:01:07.5]} 19... Rxh8 {[%clk 0:01:40.5]} 20. Rb3 {[%clk 0:01:01.1]}
20... Qa5 {[%clk 0:01:39.3]} 21. Bd2 {[%clk 0:00:57.8]} 21... Qa4 {[%clk
0:01:37.8]} 22. Qf5+ {[%clk 0:00:57.5]} 22... Nd7 {[%clk 0:01:36.4]} 23. Rfb1
{[%clk 0:00:56.1]} 23... b6 {[%clk 0:01:33.8]} 24. Bf4 {[%clk 0:00:47.8]} 24...
Re8 {[%clk 0:00:53.9]} 25. Qd5 {[%clk 0:00:37.4]} 25... Qxa2 {[%clk 0:00:35.4]}
26. Qc6 {[%clk 0:00:36.1]} 26... Kd8 {[%clk 0:00:22.8]} 27. Bxc7+ {[%clk
0:00:19.1]} 27... Ke7 {[%clk 0:00:22.8]} 28. R3b2 {[%clk 0:00:18.1]} 28... Qxc4
{[%clk 0:00:21.2]} 29. Bd6+ {[%clk 0:00:17.6]} 29... Kf7 {[%clk 0:00:20.7]} 30.
Qxd7+ {[%clk 0:00:17.4]} 30... Re7 {[%clk 0:00:19.2]} 31. Qxe7+ {[%clk
0:00:17.1]} 31... Kg6 {[%clk 0:00:18.4]} 32. Bxc5 {[%clk 0:00:16.8]} 32... bxc5
{[%clk 0:00:17.9]} 33. Rb6+ {[%clk 0:00:17]} 33... Kh5 {[%clk 0:00:17.4]} 34.
Qe5+ {[%clk 0:00:17.4]} 34... g5 {[%clk 0:00:17.6]} 35. h3 {[%clk 0:00:17.3]}
35... d3 {[%clk 0:00:17.3]} 36. g4+ {[%clk 0:00:17.3]} 1-0

[Event "*** SCC Grand Prix: Titled Tuesday Blitz"]
[Site "Chess.com"]
[Date "2020.09.29"]
[Round "4"]
[White "sokidze"]
[Black "gmpeter008"]
[Result "1-0"]
[WhiteElo "2614"]
[BlackElo "2379"]
[TimeControl "180+1"]
[EndTime "10:38:38 PDT"]
[Termination "sokidze won by resignation"]

1. e4 {[%clk 0:03:00.9]} 1... e5 {[%clk 0:02:59.2]} 2. Nf3 {[%clk 0:03:00.1]}
2... Nc6 {[%clk 0:02:59.1]} 3. Bb5 {[%clk 0:03:00.7]} 3... g6 {[%clk 0:02:58.9]}
4. d4 {[%clk 0:02:50.9]} 4... exd4 {[%clk 0:02:57.6]} 5. c3 {[%clk 0:02:51.4]}
5... d3 {[%clk 0:02:57]} 6. O-O {[%clk 0:02:37.3]} 6... Bg7 {[%clk 0:02:57.1]}
7. Bxd3 {[%clk 0:02:36.1]} 7... Nge7 {[%clk 0:02:57]} 8. c4 {[%clk 0:02:35.9]}
8... O-O {[%clk 0:02:55.9]} 9. Nc3 {[%clk 0:02:35.9]} 9... d6 {[%clk 0:02:54.2]}
10. Bg5 {[%clk 0:02:29.6]} 10... h6 {[%clk 0:02:52.5]} 11. Bh4 {[%clk
0:02:29.1]} 11... g5 {[%clk 0:02:52.4]} 12. Bg3 {[%clk 0:02:29.3]} 12... f5
{[%clk 0:02:52.3]} 13. exf5 {[%clk 0:02:25.1]} 13... Nxf5 {[%clk 0:02:51.6]} 14.
Nd2 {[%clk 0:02:13.1]} 14... Bxc3 {[%clk 0:02:29.8]} 15. bxc3 {[%clk 0:02:10.5]}
15... Qf6 {[%clk 0:02:29.8]} 16. Ne4 {[%clk 0:02:07.8]} 16... Qg7 {[%clk
0:02:29.2]} 17. Re1 {[%clk 0:02:06.2]} 17... Nxg3 {[%clk 0:02:26.7]} 18. Nxg3
{[%clk 0:01:55.6]} 18... Ne5 {[%clk 0:02:25.9]} 19. Be4 {[%clk 0:01:53.6]} 19...
Qf7 {[%clk 0:01:45.6]} 20. f3 {[%clk 0:01:42.3]} 20... g4 {[%clk 0:01:04.8]} 21.
Bd5 {[%clk 0:01:27.7]} 21... Be6 {[%clk 0:01:02.2]} 22. fxg4 {[%clk 0:01:27.7]}
22... Bxd5 {[%clk 0:00:43.7]} 23. Nf5 {[%clk 0:01:13.9]} 23... Bf3 {[%clk
0:00:15.9]} 24. Nxh6+ {[%clk 0:00:53.2]} 24... Kg7 {[%clk 0:00:15.7]} 25. Nxf7
{[%clk 0:00:54.1]} 25... Bxd1 {[%clk 0:00:13.3]} 26. Nxe5 {[%clk 0:00:54.7]}
26... Bc2 {[%clk 0:00:11.3]} 27. Nf3 {[%clk 0:00:53.7]} 27... Rae8 {[%clk
0:00:10.9]} 28. Nd4 {[%clk 0:00:53.3]} 28... Be4 {[%clk 0:00:10.4]} 29. Re3
{[%clk 0:00:49.1]} 29... a6 {[%clk 0:00:08]} 30. Rae1 {[%clk 0:00:49.1]} 30...
Rf4 {[%clk 0:00:07.9]} 31. g3 {[%clk 0:00:46]} 31... Rxg4 {[%clk 0:00:08]} 32.
h3 {[%clk 0:00:46.3]} 32... Rg6 {[%clk 0:00:07]} 33. Kh2 {[%clk 0:00:44.9]}
33... Rg4 {[%clk 0:00:04.8]} 34. hxg4 {[%clk 0:00:37.2]} 34... Rh8+ {[%clk
0:00:04.2]} 35. Kg1 {[%clk 0:00:37.7]} 35... Rh1+ {[%clk 0:00:05.1]} 36. Kf2
{[%clk 0:00:38.2]} 36... Rh2+ {[%clk 0:00:05.7]} 37. Kf1 {[%clk 0:00:38.8]}
37... Rh1+ {[%clk 0:00:04]} 38. Ke2 {[%clk 0:00:39.2]} 38... Rh2+ {[%clk
0:00:04.5]} 39. Kd1 {[%clk 0:00:39.7]} 1-0

[Event "*** SCC Grand Prix: Titled Tuesday Blitz"]
[Site "Chess.com"]
[Date "2020.09.29"]
[Round "4"]
[White "Resignify"]
[Black "lucachess49"]
[Result "1-0"]
[WhiteElo "2250"]
[BlackElo "2391"]
[TimeControl "180+1"]
[EndTime "10:38:39 PDT"]
[Termination "Resignify won on time"]

1. e4 {[%clk 0:03:00.9]} 1... e5 {[%clk 0:02:59.8]} 2. Nf3 {[%clk 0:03:00.3]}
2... Nc6 {[%clk 0:02:57]} 3. Bb5 {[%clk 0:03:00]} 3... a6 {[%clk 0:02:56.2]} 4.
Ba4 {[%clk 0:03:00.1]} 4... Nf6 {[%clk 0:02:54.9]} 5. O-O {[%clk 0:02:59.9]}
5... Be7 {[%clk 0:02:55.4]} 6. Re1 {[%clk 0:02:59.7]} 6... b5 {[%clk 0:02:54.1]}
7. Bb3 {[%clk 0:02:59.3]} 7... d6 {[%clk 0:02:52.4]} 8. c3 {[%clk 0:02:58.1]}
8... O-O {[%clk 0:02:49.8]} 9. h3 {[%clk 0:02:58]} 9... Na5 {[%clk 0:02:49]} 10.
Bc2 {[%clk 0:02:57.4]} 10... c5 {[%clk 0:02:43.7]} 11. d4 {[%clk 0:02:56.9]}
11... Qc7 {[%clk 0:02:39.6]} 12. Nbd2 {[%clk 0:02:54.8]} 12... Nc6 {[%clk
0:02:35.9]} 13. Nf1 {[%clk 0:02:44.5]} 13... cxd4 {[%clk 0:01:39.6]} 14. cxd4
{[%clk 0:02:43.7]} 14... exd4 {[%clk 0:01:40.1]} 15. Bg5 {[%clk 0:02:30.3]}
15... Be6 {[%clk 0:01:38.3]} 16. Rc1 {[%clk 0:02:04.2]} 16... Qb6 {[%clk
0:01:35.7]} 17. Bb1 {[%clk 0:01:51.4]} 17... Rac8 {[%clk 0:01:30.4]} 18. Ng3
{[%clk 0:01:37.2]} 18... h6 {[%clk 0:01:28.2]} 19. Bf4 {[%clk 0:01:18.4]} 19...
Nd7 {[%clk 0:01:27]} 20. Qd2 {[%clk 0:00:35.9]} 20... Nde5 {[%clk 0:00:21.5]}
21. Nxe5 {[%clk 0:00:33.5]} 21... dxe5 {[%clk 0:00:17.2]} 22. Bxh6 {[%clk
0:00:33.1]} 22... Na5 {[%clk 0:00:03.8]} 23. b3 {[%clk 0:00:17.8]} 23... gxh6
{[%clk 0:00:02.2]} 24. Qxh6 {[%clk 0:00:16]} 24... f6 {[%clk 0:00:02.5]} 25.
Qg6+ {[%clk 0:00:12.3]} 25... Kh8 {[%clk 0:00:02.4]} 26. Nh5 {[%clk 0:00:08.7]}
26... Rf7 {[%clk 0:00:02.3]} 27. Rxc8+ {[%clk 0:00:06.9]} 1-0

[Event "*** SCC Grand Prix: Titled Tuesday Blitz"]
[Site "Chess.com"]
[Date "2020.09.29"]
[Round "4"]
[White "Infernal_XaM"]
[Black "angryhorse9"]
[Result "1-0"]
[WhiteElo "2846"]
[BlackElo "2543"]
[TimeControl "180+1"]
[EndTime "10:38:41 PDT"]
[Termination "Infernal_XaM won by resignation"]

1. d4 {[%clk 0:03:00.9]} 1... Nf6 {[%clk 0:02:59.9]} 2. c4 {[%clk 0:02:59.2]}
2... e6 {[%clk 0:03:00.2]} 3. Nc3 {[%clk 0:02:58.9]} 3... Bb4 {[%clk 0:02:59.9]}
4. Bd2 {[%clk 0:02:59.2]} 4... O-O {[%clk 0:02:59.6]} 5. Rc1 {[%clk 0:02:57.8]}
5... d5 {[%clk 0:02:55.7]} 6. cxd5 {[%clk 0:02:57.1]} 6... exd5 {[%clk
0:02:55.3]} 7. Nf3 {[%clk 0:02:57.3]} 7... c6 {[%clk 0:02:53.5]} 8. e3 {[%clk
0:02:54.5]} 8... Re8 {[%clk 0:02:48.8]} 9. Bd3 {[%clk 0:02:55]} 9... a5 {[%clk
0:02:44.4]} 10. Ne5 {[%clk 0:02:53.9]} 10... Nbd7 {[%clk 0:02:38.1]} 11. f4
{[%clk 0:02:54]} 11... Bxc3 {[%clk 0:02:33.5]} 12. Bxc3 {[%clk 0:02:52.4]} 12...
Ne4 {[%clk 0:02:34.1]} 13. Bxe4 {[%clk 0:02:49.8]} 13... dxe4 {[%clk 0:02:35]}
14. Qb3 {[%clk 0:02:47.7]} 14... Nxe5 {[%clk 0:02:21.2]} 15. dxe5 {[%clk
0:02:47.4]} 15... Qh4+ {[%clk 0:02:16.8]} 16. Kf1 {[%clk 0:02:42.2]} 16... b5
{[%clk 0:01:55.7]} 17. Be1 {[%clk 0:02:32.1]} 17... Qh6 {[%clk 0:01:20.2]} 18.
Qc2 {[%clk 0:02:30.1]} 18... Be6 {[%clk 0:01:18.7]} 19. a3 {[%clk 0:02:21.9]}
19... Bc4+ {[%clk 0:01:16.3]} 20. Kg1 {[%clk 0:02:22.1]} 20... a4 {[%clk
0:01:16.9]} 21. h3 {[%clk 0:02:19.8]} 21... Bd5 {[%clk 0:01:15.5]} 22. Kh2
{[%clk 0:02:18.9]} 22... Rad8 {[%clk 0:01:10.6]} 23. Bb4 {[%clk 0:02:04.8]}
23... Qg6 {[%clk 0:01:08.4]} 24. Qf2 {[%clk 0:02:03.9]} 24... Bc4 {[%clk
0:01:05.2]} 25. f5 {[%clk 0:01:58.7]} 25... Qg5 {[%clk 0:01:00.7]} 26. Bc3
{[%clk 0:01:58.4]} 26... f6 {[%clk 0:00:56.3]} 27. exf6 {[%clk 0:01:41.6]} 27...
gxf6 {[%clk 0:00:57.2]} 28. g4 {[%clk 0:01:32.7]} 28... Rd3 {[%clk 0:00:53]} 29.
Rce1 {[%clk 0:01:32.7]} 29... Kf7 {[%clk 0:00:45.8]} 30. Rhg1 {[%clk 0:01:32]}
30... Qh6 {[%clk 0:00:37]} 31. Qg3 {[%clk 0:01:24.9]} 31... Rd7 {[%clk
0:00:36.9]} 32. h4 {[%clk 0:01:16.5]} 32... Rg8 {[%clk 0:00:30.9]} 33. Kh3
{[%clk 0:01:16.5]} 33... Bd5 {[%clk 0:00:27.1]} 34. Rd1 {[%clk 0:01:11.5]} 34...
Re8 {[%clk 0:00:18.5]} 35. g5 {[%clk 0:01:06.5]} 35... fxg5 {[%clk 0:00:19.4]}
36. Qxg5 {[%clk 0:01:06.3]} 36... Qxg5 {[%clk 0:00:17.7]} 37. hxg5 {[%clk
0:01:05.7]} 37... Rg8 {[%clk 0:00:17.9]} 38. Kg4 {[%clk 0:01:03.8]} 38... Ke8
{[%clk 0:00:15.5]} 39. Kf4 {[%clk 0:01:03.2]} 39... Rf7 {[%clk 0:00:15.9]} 40.
Rh1 {[%clk 0:00:55.5]} 40... Rgf8 {[%clk 0:00:14.5]} 41. Bf6 {[%clk 0:00:55.2]}
41... Rd7 {[%clk 0:00:10.6]} 42. Rh6 {[%clk 0:00:53.8]} 42... Bg8 {[%clk
0:00:09.2]} 43. Rxd7 {[%clk 0:00:53.1]} 43... Kxd7 {[%clk 0:00:10.1]} 44. Kxe4
{[%clk 0:00:53.4]} 44... Re8+ {[%clk 0:00:10.6]} 45. Kf4 {[%clk 0:00:53.5]}
45... c5 {[%clk 0:00:10.6]} 46. Be5 {[%clk 0:00:51.8]} 46... b4 {[%clk
0:00:07.1]} 47. Rd6+ {[%clk 0:00:51.7]} 47... Ke7 {[%clk 0:00:07.2]} 48. Rc6
{[%clk 0:00:50]} 1-0